bitfinex/quotes_SOLUSD_20240702
["timestamp","ask_amount","ask_price","bid_price","bid_amount"]
[1719931121781,30.0,147.79,147.72,16.6478]
[1719931122092,30.0,147.79,147.71,16.9243]
[1719931122289,30.0,147.79,147.7,6.4862]
[1719931122495,6.7673,147.77,147.7,6.4862]
[1719931122845,20.0,147.78,147.7,6.4862]
[1719931123937,20.0,147.78,147.73,23.6908]
[1719931124073,30.0,147.79,147.73,16.9221]
[1719931124096,30.0,147.79,147.75,6.7677]
[1719931124114,20.0,147.78,147.73,16.9221]
[1719931124122,6.7662,147.8,147.72,6.7691]
[1719931124131,20.0,147.79,147.73,8.12252662]
[1719931124277,6.7659,147.8,147.72,23.6926]
[1719931126516,30.0,147.75,147.7,6.4862]
[1719931126521,30.0,147.75,147.7,13.2564]
[1719931126528,30.0,147.75,147.7,6.4862]
[1719931126544,30.0,147.75,147.74,6.7686]
[1719931126547,16.3417,147.84,147.77,16.9181]
[1719931126556,30.0,147.78,147.74,6.7682]
[1719931126564,30.0,147.78,147.74,16.921]
[1719931126571,30.0,147.78,147.74,23.6894]
[1719931126672,30.0,147.78,147.71,16.9243]
[1719931126898,30.0,147.78,147.74,6.7683]
[1719931127592,30.0,147.78,147.75,6.7681]
[1719931127893,30.0,147.78,147.75,16.9196]
[1719931128105,19.24630941,147.78,147.71,6.0917]
[1719931129276,13.88730941,147.78,147.74,6.7682]
[1719931129457,15.1418,147.87,147.71,6.0917]
[1719931129474,30.0,147.77,147.71,6.0917]
[1719931129496,30.0,147.77,147.74,6.7681]
[1719931129505,30.0,147.77,147.75,6.768]
[1719931129607,6.7641,147.84,147.75,6.768]
[1719931132010,26.7645,147.83,147.74,16.9211]
[1719931132015,26.7646,147.83,147.71,6.0917]
[1719931132020,15.1418,147.87,147.71,6.0917]
[1719931132024,15.1418,147.87,147.77,6.7672]
[1719931132025,6.7639,147.85,147.77,6.7672]
[1719931132031,15.1418,147.87,147.71,6.0917]
[1719931132036,6.7648,147.83,147.75,6.7681]
[1719931132038,16.9085,147.86,147.74,16.921]
[1719931132041,6.7655,147.81,147.74,16.921]
[1719931132058,6.765,147.82,147.74,6.7686]
[1719931132062,6.7641,147.84,147.76,6.7673]
[1719931132206,20.0,147.83,147.75,16.9197]
[1719931132508,20.0,147.83,147.71,6.0917]
[1719931132707,20.0,147.86,147.71,6.0917]
[1719931132882,6.7651,147.82,147.73,16.9223]
[1719931133206,20.0,147.86,147.75,16.92]
[1719931134157,6.7648,147.83,147.75,23.6881]
[1719931134754,20.0,147.82,147.71,6.0917]
[1719931134770,20.0,147.86,147.74,16.9208]
[1719931134771,20.33,147.85,147.74,16.9208]
[1719931134806,26.7641,147.84,147.76,16.9188]
[1719931134812,26.7641,147.84,147.76,23.6864]
[1719931134816,6.7646,147.83,147.76,16.9188]
[1719931135095,20.0,147.82,147.76,16.9188]
[1719931137306,20.0,147.82,147.73,16.9222]
[1719931137311,6.7664,147.79,147.71,12.8615]
[1719931137320,6.7681,147.76,147.68,6.7712]
[1719931137325,6.7681,147.76,147.67,16.9294]
[1719931137326,36.7673,147.77,147.67,16.9294]
[1719931137346,20.0,147.76,147.67,16.9294]
[1719931137347,26.7677,147.76,147.68,6.7709]
[1719931137353,30.0,147.75,147.68,6.7709]
[1719931137914,36.7684,147.75,147.67,16.9294]
[1719931138102,36.7684,147.75,147.67,23.7008]
[1719931138777,20.0,147.74,147.67,6.7715]
[1719931139747,30.0,147.73,147.68,6.7713]
[1719931139778,30.0,147.73,147.67,16.9295]
[1719931139794,30.0,147.73,147.64,16.9322]
[1719931139810,20.0,147.72,147.61,22.4058]
[1719931139821,30.0,147.73,147.61,22.4058]
[1719931142226,30.0,147.71,147.61,22.4058]
[1719931142229,30.0,147.71,147.7,6.7704]
[1719931142238,16.1483,147.79,147.73,16.9216]
[1719931142251,16.1483,147.79,147.69,21.3852]
[1719931142257,6.0481,147.83,147.69,21.3852]
[1719931142262,6.7659,147.8,147.72,23.6926]
[1719931142267,6.0481,147.83,147.69,21.3852]
[1719931142281,26.3781,147.83,147.71,6.7695]
[1719931142298,6.0481,147.83,147.69,6.3105]
[1719931142304,6.0481,147.83,147.71,6.7698]
[1719931142425,40.33,147.82,147.71,6.7698]
[1719931142621,20.0,147.82,147.75,6.7678]
[1719931142804,30.0,147.76,147.74,16.9212]
[1719931142999,30.0,147.76,147.74,23.6895]
[1719931143325,30.0,147.76,147.71,16.9243]
[1719931143807,20.0,147.82,147.71,16.9249]
[1719931144896,36.9129,147.82,147.69,6.3105]
[1719931144918,36.9129,147.82,147.74,6.7685]
[1719931144919,26.765,147.82,147.74,6.7685]
[1719931144929,6.7654,147.81,147.73,6.769]
[1719931144947,20.0,147.8,147.69,6.3105]
[1719931144961,20.0,147.82,147.68,16.9282]
[1719931144962,16.9146,147.81,147.68,16.9282]
[1719931145224,16.9146,147.81,147.65,22.6842]
[1719931145225,16.9146,147.81,147.62,16.9351]
[1719931145226,16.919,147.77,147.62,16.9351]
[1719931147347,16.919,147.77,147.61,276.2348]
[1719931147348,6.7694,147.73,147.65,6.7727]
[1719931147356,6.7707,147.7,147.62,6.7738]
[1719931147374,6.7701,147.71,147.63,6.7736]
[1719931147380,6.7701,147.71,147.63,23.7073]
[1719931147381,6.7704,147.71,147.63,23.7073]
[1719931147388,45.0,147.76,147.65,6.7723]
[1719931147389,20.33,147.75,147.65,6.7723]
[1719931147401,30.0,147.68,147.65,6.7723]
[1719931147419,30.0,147.68,147.64,6.773]
[1719931147426,30.0,147.68,147.6,6.386]
[1719931147541,30.0,147.68,147.62,16.9349]
[1719931147730,30.0,147.68,147.62,23.7089]
[1719931148104,30.0,147.68,147.62,16.9349]
[1719931148749,67.259,147.68,147.58,0.8325163]
[1719931149760,20.0,147.67,147.58,0.8325163]
[1719931150078,30.0,147.66,147.61,6.7742]
[1719931150103,30.0,147.66,147.58,0.8325163]
[1719931150104,20.0,147.65,147.59,6.7754]
[1719931150129,20.0,147.65,147.58,7.6084163]
[1719931150133,20.0,147.65,147.58,0.8325163]
[1719931150231,30.0,147.64,147.58,7.6083163]
[1719931152610,30.0,147.64,147.59,6.7754]
[1719931152614,30.0,147.64,147.58,0.8325163]
[1719931152647,30.0,147.64,147.58,7.6083163]
[1719931152651,30.0,147.64,147.58,0.8325163]
[1719931152658,36.7734,147.64,147.58,0.8325163]
[1719931152712,36.7736,147.64,147.58,0.8325163]
[1719931153231,6.7737,147.63,147.58,0.8325163]
[1719931153536,30.0,147.62,147.58,0.8325163]
[1719931155268,20.0,147.61,147.58,0.8325163]
[1719931155276,30.0,147.6,147.58,0.8325163]
[1719931157766,30.0,147.6,147.59,6.7755]
[1719931157775,30.0,147.6,147.58,0.8325163]
[1719931157783,20.0,147.59,147.58,0.8325163]
[1719931157789,56.7755,147.59,147.58,0.8325163]
[1719931157805,13.4399,147.58,147.49,6.7799]
[1719931157806,26.7768,147.57,147.49,16.9494]
[1719931158037,6.7774,147.55,147.47,6.7809]
[1719931158210,30.0,147.56,147.46,16.953]
[1719931158211,50.33,147.56,147.46,16.953]
[1719931158417,6.7788,147.52,147.44,6.7823]
[1719931158629,20.0,147.55,147.43,7.3347163]
[1719931158932,6.7797,147.5,147.43,0.8325163]
[1719931159131,30.0,147.5,147.43,0.8325163]
[1719931159341,30.0,147.5,147.45,16.9541]
[1719931160346,6.0419,147.53,147.46,6.7814]
[1719931160718,6.7796,147.5,147.43,0.8325163]
[1719931160743,30.0,147.49,147.43,0.8325163]
[1719931160870,20.0,147.48,147.43,0.8325163]
[1719931163178,20.0,147.48,147.43,7.6152163]
[1719931163182,30.0,147.49,147.46,6.781]
[1719931163185,16.5096,147.54,147.43,0.8325163]
[1719931163204,6.7796,147.51,147.43,0.8325163]
[1719931163207,6.7799,147.5,147.43,0.8325163]
[1719931163210,6.7784,147.53,147.44,6.7821]
[1719931163215,16.5096,147.54,147.44,16.9552]
[1719931163220,6.7784,147.53,147.44,16.9552]
[1719931163226,16.5096,147.54,147.44,16.9552]
[1719931163427,26.14566816,147.6,147.45,20.0]
[1719931163662,6.99790786,147.61,147.52,16.9458]
[1719931163847,6.7751,147.6,147.52,16.9458]
[1719931164166,6.7751,147.6,147.46,16.9531]
[1719931164167,6.7774,147.55,147.46,16.9531]
[1719931164538,6.7767,147.57,147.48,16.9507]
[1719931165097,6.777,147.56,147.48,23.7311]
[1719931165806,20.0,147.55,147.48,23.7311]
[1719931166131,20.0,147.56,147.5,6.7794]
[1719931166148,20.0,147.58,147.54,6.7776]
[1719931166167,6.99951184,147.6,147.53,6.7782]
[1719931166168,20.0,147.59,147.53,6.7782]
[1719931166183,22.6646,147.62,147.54,23.7214]
[1719931166188,20.33,147.6,147.43,7.2925163]
[1719931166237,6.99924905,147.58,147.48,6.7804]
[1719931166437,51.6371,147.61,147.47,16.9516]
[1719931166438,16.9371,147.61,147.47,16.9516]
[1719931168566,16.9371,147.61,147.47,23.7325]
[1719931168567,6.7774,147.55,147.47,23.7325]
[1719931168571,134.7,147.63,147.43,7.2925163]
[1719931168572,6.4156,147.53,147.43,17.7892163]
[1719931168585,13.1943,147.53,147.44,6.782]
[1719931168586,26.7789,147.52,147.45,16.9538]
[1719931168597,26.7789,147.52,147.43,7.6152163]
[1719931168607,20.0,147.52,147.43,0.8325163]
[1719931168626,6.7798,147.5,147.43,0.8325163]
[1719931168725,20.0,147.49,147.43,0.8325163]
[1719931168969,16.948,147.51,147.43,0.8325163]
[1719931169138,65.0,147.5,147.43,0.8325163]
[1719931169466,6.7802,147.49,147.43,0.8325163]
[1719931169641,20.0,147.48,147.43,0.8325163]
[1719931169841,20.0,147.5,147.43,0.8325163]
[1719931170179,20.33,147.45,147.43,0.8325163]
[1719931170356,15.9289,147.46,147.43,0.8325163]
[1719931170542,20.0,147.45,147.43,0.8325163]
[1719931171491,30.0,147.47,147.43,0.8325163]
[1719931171882,6.7824,147.44,147.43,0.8325163]
[1719931172052,26.7824,147.44,147.43,0.8325163]
[1719931174433,20.0,147.44,147.43,0.8325163]
[1719931174441,26.7824,147.44,147.43,0.8325163]
[1719931174445,30.0,147.47,147.43,0.8325163]
[1719931174460,15.3036,147.51,147.43,0.8325163]
[1719931174465,49.2008,147.51,147.43,0.8325163]
[1719931174467,20.33,147.5,147.43,0.8325163]
[1719931174569,6.7819,147.45,147.43,0.8325163]
[1719931174748,6.7818,147.46,147.43,0.8325163]
[1719931175070,37.2797,147.5,147.43,0.8325163]
[1719931175071,40.33,147.45,147.43,0.8325163]
[1719931175274,6.7824,147.44,147.43,0.8325163]
[1719931175452,20.0,147.44,147.43,0.8325163]
[1719931175653,6.7802,147.49,147.43,0.8325163]
[1719931175861,6.7796,147.5,147.43,0.8325163]
[1719931176045,6.7802,147.49,147.43,0.8325163]
[1719931176858,15.3036,147.51,147.43,0.8325163]
[1719931177531,35.6336,147.51,147.43,0.8325163]
[1719931177546,15.3036,147.51,147.43,0.8325163]
[1719931177561,6.7803,147.49,147.43,0.8325163]
[1719931177575,20.0,147.48,147.43,0.8325163]
[1719931177600,6.7815,147.46,147.43,0.8325163]
[1719931177666,26.782,147.45,147.43,0.8325163]
[1719931179998,20.0,147.45,147.43,0.8325163]
[1719931180001,27.32958662,147.48,147.43,0.8325163]
[1719931180002,20.0,147.47,147.43,0.8325163]
[1719931180046,26.7813,147.47,147.43,0.8325163]
[1719931180052,6.7823,147.45,147.43,0.8325163]
[1719931180148,50.0,147.44,147.43,0.8325163]
[1719931181050,6.7809,147.48,147.43,0.8325163]
[1719931181251,13.77955074,147.49,147.43,0.8325163]
[1719931181447,27.32945074,147.49,147.43,0.8325163]
[1719931181984,30.0,147.44,147.43,0.8325163]
[1719931183483,20.0,147.44,147.43,0.8325163]
[1719931185890,6.7807,147.48,147.43,0.8325163]
[1719931185897,6.99945074,147.49,147.43,0.8325163]
[1719931185915,6.7801,147.49,147.43,0.8325163]
[1719931185922,6.7799,147.5,147.43,0.8325163]
[1719931185923,6.99683576,147.51,147.43,0.8325163]
[1719931185924,6.7807,147.48,147.43,0.8325163]
[1719931185928,6.7802,147.49,147.43,0.8325163]
[1719931185934,27.32683576,147.51,147.43,0.8325163]
[1719931185935,44.27553576,147.51,147.43,0.8325163]
[1719931185940,6.99683576,147.51,147.43,0.8325163]
[1719931185950,13.77603576,147.51,147.43,7.6153163]
[1719931185969,6.7792,147.51,147.44,6.2315]
[1719931186073,6.99597494,147.53,147.44,23.1871]
[1719931186260,22.15997494,147.53,147.44,23.1871]
[1719931186479,6.7791,147.52,147.44,29.9694]
[1719931186856,6.7793,147.51,147.44,6.2315]
[1719931187051,6.7802,147.49,147.44,6.2315]
[1719931187575,20.0,147.5,147.44,6.2315]
[1719931188568,20.0,147.52,147.45,16.0589]
[1719931188787,20.0,147.55,147.45,16.0589]
[1719931188965,6.7784,147.53,147.45,22.8405]
[1719931189382,6.99658568,147.56,147.45,16.0589]
[1719931189682,6.7767,147.57,147.48,6.7802]
[1719931189864,6.776,147.58,147.47,16.9517]
[1719931190078,27.32626528,147.6,147.47,16.9517]
[1719931190561,27.32626528,147.6,147.48,6.7804]
[1719931190894,6.7772,147.56,147.48,6.7804]
[1719931191271,20.0,147.55,147.49,6.78]
[1719931191484,20.0,147.56,147.49,16.9499]
[1719931191667,6.7764,147.58,147.5,6.7795]
[1719931191864,20.0,147.57,147.49,16.9499]
[1719931192268,20.0,147.57,147.51,16.9474]
[1719931192591,6.7761,147.58,147.51,16.9474]
[1719931192774,6.7756,147.59,147.51,16.9474]
[1719931193288,6.7746,147.61,147.53,6.7781]
[1719931193481,6.7741,147.63,147.54,6.7776]
[1719931193686,30.0,147.55,147.53,32.3851]
[1719931193865,30.0,147.55,147.53,15.4399]
[1719931194191,27.33096473,147.64,147.53,15.4399]
[1719931194693,6.7754,147.6,147.53,15.4399]
[1719931194998,20.0,147.59,147.53,22.2181]
[1719931195164,6.7746,147.61,147.53,22.218]
[1719931195489,26.7753,147.6,147.53,15.4399]
[1719931195701,20.0,147.6,147.53,15.4399]
[1719931195870,20.0,147.63,147.53,15.4399]
[1719931196072,6.7746,147.61,147.53,22.2178]
[1719931196380,26.7738,147.63,147.54,6.7776]
[1719931196572,6.7737,147.63,147.55,6.777]
[1719931197072,57.3166,147.68,147.57,6.7764]
[1719931197073,6.7731,147.65,147.57,6.7764]
[1719931197266,23.51751702,147.67,147.54,16.9437]
[1719931197987,6.7724,147.66,147.56,16.9418]
[1719931198190,7.00021702,147.67,147.56,16.9418]
[1719931198389,7.00021702,147.67,147.58,16.9391]
[1719931198584,13.77211702,147.67,147.59,6.3036]
[1719931198765,6.7714,147.68,147.6,6.7746]
[1719931198970,53.0532,147.71,147.59,6.3036]
[1719931198971,6.7726,147.66,147.59,6.3036]
[1719931199171,60.05439222,147.71,147.59,6.3036]
[1719931199371,60.05439222,147.71,147.67,6.7717]
[1719931199372,7.00119222,147.71,147.67,6.7717]
[1719931199586,16.9137,147.81,147.67,16.929]
[1719931199785,6.99485667,147.79,147.67,16.929]
[1719931200370,6.7699,147.72,147.63,6.7733]
[1719931200566,6.7679,147.76,147.68,6.771]
[1719931200915,16.9188,147.77,147.64,16.9323]
[1719931201196,16.9188,147.77,147.6,67.1755]
[1719931201197,15.1526,147.76,147.6,22.1755]
[1719931201576,20.0,147.75,147.66,16.93]
[1719931201900,20.0,147.75,147.6,22.1755]
[1719931201901,20.0,147.75,147.68,16.9277]
[1719931202102,6.7672,147.78,147.69,6.4047]
[1719931202398,6.99485667,147.79,147.69,6.4047]
[1719931202898,6.7687,147.74,147.69,6.4047]
[1719931203275,6.7687,147.74,147.66,6.7722]
[1719931203276,27.32485667,147.79,147.65,6.4047]
[1719931203483,16.9199,147.76,147.65,6.4047]
[1719931203677,45.0,147.75,147.61,6.1343]
[1719931203876,6.99485667,147.79,147.62,21.7349]
[1719931204175,20.0,147.85,147.62,21.7349]
[1719931204383,100.0,147.86,147.62,21.7349]
[1719931204384,6.99082422,147.81,147.62,33.21793773]
[1719931204781,100.0,147.86,147.62,33.21793773]
[1719931204988,6.99056525,147.8,147.62,33.21793773]
[1719931205183,100.0,147.84,147.63,45.0]
[1719931205390,6.99181014,147.8,147.64,6.2231]
[1719931205598,6.99181014,147.8,147.66,22.7889]
[1719931205771,162.97615457,147.87,147.66,22.7889]
[1719931206086,6.99226187,147.82,147.66,22.7889]
[1719931206300,20.33,147.86,147.67,45.0]
[1719931206480,6.9914941,147.86,147.67,45.0]
[1719931206684,6.9914941,147.86,147.7,106.0034]
[1719931206993,120.33,147.92,147.71,54.7]
[1719931207298,6.99155118,147.88,147.71,54.7]
[1719931207466,0.8325163,147.94,147.71,154.7]
[1719931207666,6.99009678,147.91,147.72,40.7034]
[1719931207883,0.8325163,147.94,147.74,15.3537]
[1719931208090,0.8325163,147.94,147.75,45.0]
[1719931208290,6.98643271,147.92,147.75,45.0]
[1719931209481,6.98643271,147.92,147.75,65.33]
[1719931209790,6.98643271,147.92,147.78,6.5953]
[1719931209984,0.8325163,147.94,147.79,54.7]
[1719931210292,0.8325163,147.94,147.79,34.7]
[1719931210501,0.8325163,147.94,147.8,45.0]
[1719931210691,0.8325163,147.94,147.81,1.35227617]
[1719931210901,0.8325163,147.94,147.8,45.0]
[1719931211281,0.8325163,147.94,147.78,6.5953]
[1719931212300,0.8325163,147.94,147.8,45.0]
[1719931212682,0.8325163,147.94,147.81,45.0]
[1719931213193,0.8325163,147.94,147.79,45.0]
[1719931214073,0.8325163,147.94,147.81,6.6534]
[1719931214281,0.8325163,147.94,147.82,46.35227459]
[1719931214888,0.8325163,147.94,147.82,45.0]
[1719931215083,0.8325163,147.94,147.83,1.35226302]
[1719931216100,0.8325163,147.94,147.81,6.6534]
[1719931216805,0.8325163,147.94,147.82,1.35218782]
[1719931217011,0.8325163,147.94,147.83,31.35219172]
[1719931217382,0.8325163,147.94,147.83,30.0]
[1719931217822,0.8325163,147.94,147.84,17.64093579]
[1719931217985,0.8325163,147.94,147.85,6.1943]
[1719931218188,0.8325163,147.94,147.85,51.1943]
[1719931219195,0.8325163,147.94,147.85,81.1943]
[1719931219909,0.8325163,147.94,147.85,101.5243]
[1719931220200,0.8325163,147.94,147.85,81.1943]
[1719931221004,0.8325163,147.94,147.87,20.33]
[1719931221199,0.8325163,147.94,147.88,65.33]
[1719931221402,0.8325163,147.94,147.88,45.0]
[1719931221914,0.8325163,147.94,147.89,42.37]
[1719931222093,0.8325163,147.94,147.88,45.0]
[1719931222609,27.32310159,148.06,147.88,45.0]
[1719931222811,27.32310159,148.06,147.89,6.3988]
[1719931223107,27.32310159,148.06,147.89,26.7288]
[1719931223605,27.32310159,148.06,147.9,45.0]
[1719931225688,20.33,148.04,147.89,6.3988]
[1719931225895,20.0,148.03,147.89,6.3988]
[1719931226089,20.0,148.04,147.89,6.3988]
[1719931226819,45.0,148.03,147.89,6.3988]
[1719931226988,20.0,148.02,147.89,6.3988]
[1719931227607,20.0,148.04,147.89,6.3988]
[1719931228130,40.33,148.04,147.89,6.3988]
[1719931228297,40.33,148.04,147.9,45.0]
[1719931228701,40.33,148.04,147.89,6.3988]
[1719931229003,20.33,148.02,147.89,6.3988]
[1719931229212,20.33,148.0,147.89,6.3988]
[1719931229419,40.33,147.99,147.89,6.3988]
[1719931229606,71.9694,147.98,147.85,6.6553]
[1719931229799,20.33,147.96,147.85,6.6553]
[1719931230024,20.0,147.95,147.85,6.6553]
[1719931230235,35.817,147.94,147.85,6.6553]
[1719931230394,20.0,147.93,147.85,6.6553]
[1719931230961,40.33,147.93,147.8,22.5396]
[1719931232092,40.33,147.93,147.8,6.6309]
[1719931232703,20.0,147.93,147.8,6.6309]
[1719931233824,20.0,147.93,147.81,45.0]
[1719931237304,40.33,147.93,147.8,6.6309]
[1719931238232,20.0,147.93,147.8,6.6309]
[1719931238730,20.0,147.93,147.81,45.0]
[1719931239929,40.33,147.93,147.8,6.6309]
[1719931240305,20.33,147.91,147.8,6.6309]
[1719931240502,40.33,147.9,147.8,6.6309]
[1719931240818,6.7628,147.87,147.8,6.6309]
[1719931241011,26.7631,147.86,147.8,6.6309]
[1719931241340,6.7646,147.83,147.76,15.7605]
[1719931241640,20.0,147.86,147.77,16.9176]
[1719931241925,6.7637,147.85,147.77,23.1847]
[1719931242131,6.7637,147.85,147.75,6.149]
[1719931242132,6.7645,147.83,147.75,12.917]
[1719931242344,20.0,147.82,147.75,12.917]
[1719931242512,20.0,147.82,147.77,6.7672]
[1719931242714,20.0,147.82,147.76,6.7675]
[1719931243024,20.0,147.84,147.76,6.7675]
[1719931243348,20.0,147.84,147.77,6.7672]
[1719931243729,20.0,147.84,147.78,6.7667]
[1719931243930,15.766,147.87,147.77,6.7672]
[1719931243931,26.7637,147.85,147.77,6.7672]
[1719931244145,20.0,147.85,147.78,6.7667]
[1719931244742,20.0,147.85,147.79,8.11940939]
[1719931244937,26.7632,147.86,147.78,23.6833]
[1719931245315,20.0,147.86,147.75,23.0689]
[1719931245731,6.7642,147.84,147.76,6.7676]
[1719931245984,20.0,147.83,147.75,23.0689]
[1719931246245,20.0,147.83,147.78,6.7664]
[1719931246414,20.0,147.85,147.79,16.9154]
[1719931246623,15.766,147.87,147.75,39.9896]
[1719931246925,22.5291,147.87,147.78,16.9163]
[1719931247234,22.5291,147.87,147.79,6.7662]
[1719931247540,6.7636,147.85,147.78,23.683]
[1719931247739,6.7632,147.86,147.78,23.683]
[1719931248037,20.0,147.85,147.8,6.7655]
[1719931248345,20.0,147.86,147.8,6.7655]
[1719931248527,20.0,147.86,147.79,6.7662]
[1719931249435,20.0,147.86,147.8,6.7658]
[1719931249850,20.0,147.86,147.79,6.7662]
[1719931250049,20.0,147.86,147.8,6.7658]
[1719931250246,20.0,147.86,147.79,6.7662]
[1719931250552,26.7631,147.86,147.78,23.683]
[1719931251254,26.7631,147.86,147.8,16.9141]
[1719931251255,20.0,147.86,147.8,16.9141]
[1719931251460,6.7628,147.87,147.8,16.9141]
[1719931251627,20.0,147.86,147.8,16.9141]
[1719931251829,26.7632,147.86,147.77,16.918]
[1719931252024,20.0,147.86,147.77,16.918]
[1719931252224,20.0,147.88,147.77,16.918]
[1719931252454,6.7636,147.85,147.77,23.6852]
[1719931252659,6.7632,147.86,147.78,51.7668]
[1719931252859,20.0,147.85,147.78,51.7668]
[1719931253235,26.7638,147.85,147.78,45.0]
[1719931253443,6.7641,147.84,147.77,16.918]
[1719931253738,20.0,147.83,147.75,6.149]
[1719931253938,6.7642,147.84,147.76,6.7674]
[1719931254146,20.0,147.83,147.76,6.7674]
[1719931254353,20.0,147.83,147.77,6.7671]
[1719931254956,20.0,147.84,147.75,6.149]
[1719931255159,26.7643,147.84,147.76,6.7676]
[1719931255459,6.7646,147.83,147.75,12.9171]
[1719931255761,20.0,147.82,147.75,12.9171]
[1719931256133,6.7655,147.81,147.73,23.6908]
[1719931256342,20.0,147.8,147.74,6.7683]
[1719931256547,26.765,147.82,147.74,6.7683]
[1719931257242,26.765,147.82,147.75,6.7681]
[1719931257558,20.0,147.82,147.76,6.7676]
[1719931257951,20.0,147.82,147.75,23.6881]
[1719931258483,20.0,147.82,147.72,15.7657]
[1719931258765,20.0,147.82,147.71,23.2122]
[1719931258766,6.7669,147.78,147.71,23.2122]
[1719931258973,20.0,147.77,147.71,6.2878]
[1719931259269,6.7668,147.78,147.71,13.0578]
[1719931259585,20.0,147.77,147.71,13.0578]
[1719931260086,6.7675,147.77,147.68,6.7711]
[1719931260370,6.7678,147.76,147.68,6.7711]
[1719931260556,20.0,147.76,147.7,6.7703]
[1719931260759,26.7671,147.78,147.69,6.7707]
[1719931261075,6.7673,147.77,147.69,6.7705]
[1719931261274,20.0,147.76,147.7,6.7703]
[1719931261443,6.7673,147.77,147.7,6.7703]
[1719931261653,26.7678,147.76,147.68,23.6991]
[1719931261864,6.7678,147.76,147.68,23.6991]
[1719931262068,6.7692,147.73,147.66,6.7722]
[1719931262333,16.9185,147.77,147.64,23.013]
[1719931262472,6.7695,147.73,147.65,6.7726]
[1719931262769,15.8007,147.74,147.64,23.013]
[1719931262770,22.5694,147.74,147.64,23.013]
[1719931263070,26.7691,147.73,147.64,23.013]
[1719931263454,6.7696,147.72,147.64,29.7858]
[1719931263671,20.0,147.71,147.64,29.7858]
[1719931265287,26.77,147.71,147.64,23.7056]
[1719931265461,26.77,147.71,147.64,16.9328]
[1719931265661,26.77,147.71,147.63,6.7736]
[1719931266192,26.4446,147.71,147.61,23.1089]
[1719931266558,26.4446,147.71,147.61,16.9356]
[1719931266973,6.771,147.69,147.61,23.7099]
[1719931267185,20.0,147.68,147.62,6.7741]
[1719931267971,20.0,147.68,147.61,23.71]
[1719931268370,20.0,147.68,147.62,6.774]
[1719931268583,20.0,147.69,147.63,16.934]
[1719931268789,20.0,147.7,147.64,6.7729]
[1719931269165,6.98857605,147.8,147.76,6.7675]
[1719931269375,15.4631,147.82,147.75,23.6876]
[1719931269577,6.0289,147.83,147.75,23.6876]
[1719931269578,6.0289,147.83,147.76,6.7673]
[1719931269769,34.65,147.92,147.75,23.6879]
[1719931269770,6.764,147.84,147.75,23.6879]
[1719931269972,6.764,147.84,147.76,6.7676]
[1719931270160,15.4578,147.86,147.75,16.9199]
[1719931270361,6.7637,147.85,147.75,16.9199]
[1719931270972,6.7637,147.85,147.77,6.7672]
[1719931271581,6.7641,147.84,147.76,6.7675]
[1719931271785,6.7653,147.82,147.75,23.688]
[1719931271994,15.4578,147.86,147.75,16.9199]
[1719931272193,20.0,147.85,147.77,16.9173]
[1719931272410,15.4578,147.86,147.81,6.7653]
[1719931272698,16.2564,147.91,147.79,16.9149]
[1719931272862,33.1591,147.91,147.79,16.9149]